bitfinex/quotes_ETHUSD_20260202
["timestamp","ask_amount","ask_price","bid_price","bid_amount"]
[1770013176184,0.96807483,2214.4,2212.7,13.76515184]
[1770013176346,0.948,2214.8,2212.9,13.76515184]
[1770013176546,0.948,2215.0,2212.9,13.76515184]
[1770013176763,0.948,2215.0,2212.9,13.76615184]
[1770013176960,0.1024,2215.6,2212.9,13.76615184]
[1770013177238,0.96844449,2215.5,2213.3,13.76515184]
[1770013177440,0.948,2215.6,2213.5,13.76515184]
[1770013177838,0.96876076,2215.5,2213.5,13.76515184]
[1770013178038,0.96883721,2215.4,2213.5,13.76515184]
[1770013178255,0.948,2215.6,2213.5,13.76515184]
[1770013178534,0.96943058,2215.5,2213.5,13.76515184]
[1770013178735,0.96943058,2215.4,2213.7,12.84269652]
[1770013179061,0.948,2215.6,2213.7,12.84269652]
[1770013179281,0.96976196,2215.5,2213.7,12.84269652]
[1770013179561,0.96976196,2215.4,2213.7,12.84269652]
[1770013179764,0.948,2215.7,2213.7,12.84269652]
[1770013179991,0.96969429,2215.6,2213.9,12.84269652]
[1770013180276,0.0011,2216.1,2214.1,12.84269652]
[1770013180474,0.0011,2216.1,2214.3,12.84269652]
[1770013181442,0.948,2216.6,2214.4,12.84269652]
[1770013181632,0.948,2216.6,2214.6,12.84269652]
[1770013181837,0.948,2216.6,2214.5,1.28426965]
[1770013181838,0.948,2216.6,2214.8,12.84269652]
[1770013182556,0.1024,2216.9,2214.8,12.84269652]
[1770013182867,0.948,2217.0,2215.0,12.84269652]
[1770013183065,0.96832081,2216.9,2215.0,12.84269652]
[1770013183269,0.96804645,2216.8,2215.0,12.84269652]
[1770013183565,0.96804645,2216.7,2215.0,12.84269652]
[1770013183762,0.96804645,2216.6,2215.0,12.84269652]
[1770013183972,2.34331494,2217.3,2215.2,12.84269652]
[1770013184142,0.948,2216.9,2215.2,12.84269652]
[1770013185072,2.41917988,2217.7,2215.2,12.84269652]
[1770013185073,0.947,2217.7,2215.2,12.84269652]
[1770013185277,0.9667361,2217.6,2215.2,12.84269652]
[1770013185484,0.947,2217.9,2215.4,12.84269652]
[1770013185770,2.1173051,2218.5,2215.6,12.84269652]
[1770013185980,1.91352586,2218.4,2215.8,12.84269652]
[1770013186181,0.1024,2218.2,2215.8,12.84269652]
[1770013186475,0.1024,2218.2,2215.3,1.52128731]
[1770013186476,0.48255146,2218.5,2216.0,12.84269652]
[1770013186681,0.48255146,2218.5,2215.9,2.23126965]
[1770013186682,1.91206367,2218.4,2216.2,12.84269652]
[1770013186842,0.1024,2218.2,2216.2,12.84269652]
[1770013187039,0.1024,2218.0,2216.2,12.84269652]
[1770013187265,0.1024,2217.8,2216.2,12.84269652]
[1770013187480,0.1024,2217.8,2216.2,14.12696617]
[1770013188336,0.1024,2217.8,2216.2,12.84269652]
[1770013188772,1.91101178,2217.7,2216.2,12.84269652]
[1770013188941,0.1024,2217.6,2216.2,12.84269652]
[1770013190066,0.947,2217.7,2216.2,12.84269652]
[1770013190067,0.1024,2217.7,2216.2,12.84269652]
[1770013190376,0.1024,2217.7,2215.7,12.89141518]
[1770013190665,0.1024,2217.7,2214.0,1.12916594]
[1770013190666,0.1024,2217.5,2215.8,12.89141518]
[1770013190972,0.2335703,2217.2,2214.0,12.89141518]
[1770013191268,0.2335703,2217.2,2213.7,0.001]
[1770013191269,0.96292565,2217.1,2214.2,12.89141518]
[1770013191473,0.0011,2217.4,2214.8,12.89141518]
[1770013191685,0.0011,2217.4,2214.3,12.36566592]
[1770013191686,0.0011,2217.4,2215.0,12.89141518]
[1770013191847,0.0011,2217.4,2215.2,12.89141518]
[1770013192240,0.1024,2217.2,2215.2,12.89141518]
[1770013192444,0.0011,2217.4,2215.2,12.89141518]
[1770013193548,0.0011,2217.4,2215.4,12.89141518]
[1770013195081,0.0011,2217.4,2215.6,12.89141518]
[1770013195250,0.0011,2217.4,2215.8,12.89141518]
[1770013195450,0.0011,2217.4,2216.0,12.89141518]
[1770013197663,0.0011,2217.4,2215.5,12.89141518]
[1770013198544,0.1035,2217.4,2215.5,12.89141518]
[1770013200352,0.0011,2217.4,2215.5,12.89141518]
[1770013200557,0.0011,2217.4,2215.7,12.89141518]
[1770013200766,0.48255146,2218.5,2215.9,12.89141518]
[1770013200976,1.73124707,2219.0,2215.9,12.89141518]
[1770013200977,0.1227438,2219.0,2216.3,12.89141518]
[1770013201149,1.0697438,2219.0,2216.3,12.89141518]
[1770013201350,1.0697438,2219.0,2216.0,0.947]
[1770013201351,0.1227438,2219.0,2216.5,12.89141518]
[1770013201548,0.1227438,2219.0,2216.9,12.89141518]
[1770013201745,0.1227438,2219.0,2217.3,12.89141518]
[1770013201986,0.1227438,2219.0,2217.5,12.89141518]
[1770013202479,1.6987102,2220.1,2217.6,12.89141518]
[1770013202480,0.32614345,2220.1,2217.6,12.89141518]
[1770013202648,0.09020693,2220.1,2217.8,12.89141518]
[1770013202848,0.09020693,2220.1,2216.8,0.1024]
[1770013202849,0.947,2220.2,2218.0,12.89141518]
[1770013203165,0.1024,2220.0,2218.0,12.89141518]
[1770013203566,0.95998971,2219.9,2218.0,12.89141518]
[1770013203774,0.1024,2219.8,2218.0,12.89141518]
[1770013204086,0.1024,2219.6,2217.3,12.89141518]
[1770013204255,1.40496757,2219.6,2217.5,12.89141518]
[1770013204455,0.1024,2219.4,2217.5,12.89141518]
[1770013204661,0.1024,2219.2,2217.5,12.89141518]
[1770013204891,0.947,2219.1,2217.5,12.89141518]
[1770013205078,0.1024,2219.0,2216.7,12.89141518]
[1770013205400,0.1024,2218.8,2216.8,1.42039137]
[1770013205568,0.1024,2218.8,2216.7,12.89141518]
[1770013205569,11.96314793,2218.6,2216.7,12.89141518]
[1770013205762,0.1024,2218.4,2215.7,12.89141518]
[1770013205957,0.947,2218.8,2215.9,12.89141518]
[1770013206160,0.1024,2218.6,2216.1,12.89141518]
[1770013206377,0.947,2218.8,2216.4,13.12498548]
[1770013206584,0.947,2218.8,2216.6,12.89141518]
[1770013206757,2.91107084,2219.6,2217.0,12.89141518]
[1770013206758,1.30256757,2219.6,2217.0,12.89141518]
[1770013206956,0.1024,2219.6,2217.2,12.89141518]
[1770013207180,0.1024,2219.4,2217.2,12.89141518]
[1770013207489,0.1024,2219.2,2217.2,12.89141518]
[1770013207882,0.96268609,2219.1,2217.2,12.89141518]
[1770013208082,0.1024,2218.9,2217.2,12.89141518]
[1770013208257,0.1024,2218.9,2217.4,13.8745579]
[1770013208460,1.60850327,2219.6,2217.4,13.8745579]
[1770013208682,0.1024,2219.4,2217.4,14.8205579]
[1770013209056,0.1024,2219.6,2217.4,14.8205579]
[1770013209263,0.1024,2219.4,2217.4,14.8205579]
[1770013209488,0.1024,2219.4,2217.6,13.8745579]
[1770013210288,0.1024,2219.2,2217.6,13.8745579]
[1770013210788,1.2290801,2219.0,2217.0,13.8745579]
[1770013210987,1.71090327,2218.8,2217.0,13.8745579]
[1770013211284,1.91049277,2218.7,2217.0,13.8745579]
[1770013211487,0.1024,2218.5,2217.0,13.8745579]
[1770013211685,0.1024,2218.3,2217.0,13.8745579]
[1770013212399,0.96564309,2218.2,2216.5,15.66805645]
[1770013212699,0.1024,2218.0,2216.5,15.66805645]
[1770013212865,1.71090327,2217.8,2216.0,13.8745579]
[1770013213064,3.52017871,2217.7,2216.0,13.8745579]
[1770013213390,0.1024,2217.2,2215.5,13.8745579]
[1770013213590,1.60850327,2217.3,2215.5,13.8745579]
[1770013213591,0.1024,2217.0,2215.5,13.8745579]
[1770013213795,0.1024,2216.8,2215.5,13.8745579]
[1770013214017,0.1024,2216.6,2215.4,0.001]
[1770013214293,0.96652374,2216.5,2215.4,0.001]
[1770013214499,1.06892374,2216.4,2215.1,0.001]
[1770013214696,0.1024,2215.9,2214.3,13.8745579]
[1770013214925,1.60850327,2216.0,2213.7,0.001]
[1770013214926,0.96652374,2215.8,2214.4,14.92826817]
[1770013215099,0.946,2216.0,2214.4,14.92826817]
[1770013215263,0.1024,2216.3,2214.4,14.92826817]
[1770013216597,0.947,2216.5,2214.4,14.92826817]
[1770013216894,1.06693902,2216.4,2214.4,14.92826817]
[1770013217100,0.96453902,2216.3,2214.4,13.8745579]
[1770013217274,1.60850327,2217.2,2214.4,13.8745579]
[1770013217475,0.1024,2217.0,2214.6,13.8755579]
[1770013217664,0.1024,2217.0,2214.6,14.40990123]
[1770013217994,0.1024,2217.1,2214.6,13.8755579]
[1770013218293,0.1024,2216.9,2214.8,13.8745579]
[1770013218500,0.1024,2216.7,2214.8,13.8745579]
[1770013218701,0.96368226,2216.6,2214.8,13.8745579]
[1770013218902,0.1024,2216.5,2214.8,13.8745579]
[1770013219102,0.1024,2216.3,2214.8,13.8745579]
[1770013219422,0.1024,2215.8,2213.7,13.8755579]
[1770013219706,0.1024,2215.2,2213.7,0.001]
[1770013220007,1.91064281,2215.1,2213.7,0.001]
[1770013220194,0.1024,2214.9,2213.7,0.001]
[1770013220893,0.1024,2214.9,2213.0,13.8745579]
[1770013221233,0.1024,2214.9,2213.2,13.8745579]
[1770013221377,0.1024,2215.0,2213.2,13.8745579]
[1770013221837,0.96079085,2214.9,2212.9,0.001]
[1770013222114,0.1024,2214.8,2212.9,13.8755579]
[1770013222990,0.1024,2215.0,2212.9,13.8755579]
[1770013223288,0.1024,2215.0,2213.1,13.8745579]
[1770013224089,0.1024,2215.1,2213.1,13.8745579]
[1770013224480,0.1024,2214.9,2213.1,13.8745579]
[1770013224806,0.1024,2215.2,2213.1,13.8745579]
[1770013224978,0.1024,2215.0,2213.1,13.8745579]
[1770013225179,0.1024,2215.0,2213.3,13.8745579]
[1770013228217,0.1024,2215.0,2213.2,1.52621137]
[1770013228384,11.98091694,2215.0,2212.9,13.8755579]
[1770013228713,13.10958701,2215.0,2212.9,13.8755579]
[1770013229088,0.1024,2214.8,2212.9,13.8755579]
[1770013229808,11.87851694,2214.5,2212.9,0.001]
[1770013230014,0.1024,2214.4,2212.9,0.001]
[1770013230210,0.1024,2214.4,2212.6,13.8755579]
[1770013230211,1.30049169,2214.4,2212.6,13.8755579]
[1770013230808,1.30049169,2214.4,2213.1,0.001]
[1770013231004,0.1024,2214.7,2213.1,0.001]
[1770013231778,0.1024,2214.4,2213.1,0.001]
[1770013231978,0.1024,2214.4,2212.9,0.001]
[1770013232182,20.4954,2214.4,2212.6,13.8755579]
[1770013232401,0.1024,2214.2,2212.6,0.001]
[1770013232681,0.1024,2214.0,2212.6,13.8755579]
[1770013233013,0.1024,2213.8,2212.6,0.001]
[1770013233806,0.1024,2213.8,2212.4,0.001]
[1770013234335,0.1024,2213.8,2212.1,13.8255579]
[1770013238181,0.1024,2213.8,2212.1,13.7755579]
[1770013238497,1.39529169,2213.8,2212.1,13.7755579]
[1770013238701,11.87851694,2213.0,2210.1,0.001]
[1770013238903,1.96095474,2212.9,2210.4,13.40564431]
[1770013239433,0.948,2212.8,2210.6,13.40564431]
[1770013239589,0.1024,2212.7,2210.6,13.40564431]
[1770013239793,0.1024,2212.7,2210.8,13.40564431]
[1770013240225,0.1024,2212.7,2211.0,13.40564431]
[1770013240391,20.68205902,2213.6,2211.0,13.40564431]
[1770013240392,0.1024,2213.3,2211.0,13.40564431]
[1770013240591,0.948,2212.9,2211.0,13.40564431]
[1770013241018,0.948,2212.9,2211.2,13.40564431]
[1770013241221,0.948,2212.9,2211.4,13.40564431]
[1770013242002,0.1024,2213.7,2211.4,13.40564431]
[1770013242197,0.1024,2213.5,2211.4,13.40564431]
[1770013242434,0.948,2213.6,2211.4,13.40564431]
[1770013242627,0.1024,2213.5,2211.4,13.40564431]
[1770013242828,0.948,2213.6,2211.6,13.40564431]
[1770013243027,0.948,2213.6,2211.8,13.40564431]
[1770013243346,0.948,2213.6,2212.0,13.40564431]
[1770013244027,1.59721748,2214.7,2212.0,13.40564431]
[1770013244229,1.59721748,2214.7,2211.7,0.948]
[1770013244230,1.91140914,2214.6,2212.2,13.40564431]
[1770013244411,0.1024,2214.4,2212.4,13.40564431]
[1770013245137,0.0011,2214.6,2212.6,13.40564431]
[1770013245931,0.0011,2214.6,2212.8,13.40564431]
[1770013246833,0.0011,2214.6,2212.9,14.5]
[1770013247043,0.0011,2214.6,2213.0,13.40564431]
[1770013247224,0.0011,2214.6,2213.2,13.9193317]
[1770013249357,0.1024,2214.4,2213.2,13.9193317]
[1770013249634,0.0011,2214.6,2213.2,13.9193317]
[1770013249949,0.96941543,2214.5,2213.2,13.9193317]
[1770013250137,0.0011,2214.6,2213.2,13.9193317]
[1770013250339,0.96943352,2214.5,2213.4,13.9193317]
[1770013250525,0.0011,2214.6,2213.4,13.9193317]
[1770013250727,0.96956765,2214.5,2213.4,13.9193317]
[1770013251033,0.0011,2214.6,2213.4,13.9193317]
[1770013251233,0.0011,2214.6,2213.4,14.8673317]
[1770013251532,0.0011,2214.6,2213.6,13.9193317]
[1770013257712,0.0011,2214.8,2213.7,13.9193317]
[1770013259028,0.0011,2214.4,2213.7,13.9193317]
[1770013259230,0.0011,2214.8,2213.7,13.9193317]
[1770013259541,0.1024,2215.4,2213.6,13.9193317]
[1770013259740,0.1024,2215.4,2213.5,2.60183213]
[1770013259741,0.1024,2215.4,2213.8,13.9193317]
[1770013260122,0.9491,2215.5,2213.8,13.9193317]
[1770013260316,0.9491,2215.5,2214.0,13.9193317]
[1770013260518,0.9491,2215.5,2214.0,14.8673317]
[1770013260842,0.0011,2215.5,2214.1,13.9193317]
[1770013261148,3.10199571,2216.5,2214.2,13.9193317]
[1770013261149,0.70888884,2216.5,2214.2,13.9193317]
[1770013261353,0.948,2216.7,2214.6,13.9193317]
[1770013261523,6.56574602,2216.5,2214.6,13.9193317]
[1770013261722,0.9646353,2216.4,2214.3,15.31126487]
[1770013262019,0.1024,2216.3,2214.5,13.9193317]
[1770013262220,0.948,2216.7,2214.5,13.9193317]
[1770013262432,0.96398,2216.6,2214.7,13.9193317]
[1770013262620,0.948,2216.7,2214.7,13.9193317]
[1770013262822,0.1024,2216.5,2214.7,13.9193317]
[1770013263034,0.1024,2216.3,2214.7,13.9193317]
[1770013263222,0.1024,2216.1,2213.8,14.8673317]
[1770013263420,0.96398917,2216.0,2214.0,13.9193317]
[1770013263615,0.948,2216.1,2214.1,13.9193317]
[1770013264353,0.1024,2216.0,2214.1,13.9193317]
[1770013264546,0.1024,2216.0,2214.3,13.9193317]
[1770013264716,0.96354988,2215.9,2214.3,13.9193317]
[1770013264922,0.1024,2215.7,2214.3,13.9193317]
[1770013265531,0.1024,2215.7,2214.3,15.31126487]
[1770013266451,0.1024,2215.7,2213.7,14.8673317]
[1770013266949,0.1024,2215.7,2213.9,13.9193317]
[1770013267720,0.1024,2215.5,2213.9,13.9193317]
[1770013267925,0.1024,2215.7,2213.9,13.8693317]
[1770013268134,1.20500197,2215.7,2213.9,13.8693317]
[1770013268334,0.1024,2215.6,2213.9,15.25626487]
[1770013268535,0.1024,2215.6,2214.1,13.74947696]
[1770013269153,9.05785289,2216.5,2214.0,0.948]
[1770013269154,1.20500197,2216.8,2214.3,13.74947696]
[1770013269653,0.948,2216.9,2214.5,13.74947696]
[1770013269827,0.948,2216.9,2214.7,13.74947696]
[1770013269828,0.1024,2216.7,2214.7,13.74947696]
[1770013270027,0.1024,2216.7,2214.9,13.74947696]
[1770013270236,0.948,2216.9,2214.9,13.74947696]
[1770013270839,0.70884391,2217.0,2215.1,13.74947696]
[1770013271039,1.20500197,2218.1,2215.6,13.74947696]
[1770013271327,1.56714157,2218.6,2216.2,13.74947696]
[1770013271522,0.3621396,2218.6,2216.4,13.74947696]
[1770013271773,0.1024,2218.8,2216.4,13.74947696]
[1770013271961,0.96426474,2218.7,2216.4,13.74947696]
[1770013272258,0.1024,2218.5,2216.4,13.74947696]
[1770013272493,0.0011,2218.3,2216.4,13.74947696]
[1770013272633,8.67390346,2218.1,2215.9,13.74947696]
[1770013272954,0.1024,2217.5,2215.4,13.74947696]
[1770013273253,0.1024,2217.1,2215.4,13.74947696]
[1770013273458,1.20500197,2217.2,2214.9,13.74947696]
[1770013273459,0.1024,2216.9,2214.9,13.74947696]
[1770013273627,0.1024,2216.7,2214.9,13.74947696]
[1770013273829,0.1024,2216.5,2214.9,13.74947696]
[1770013274025,0.1024,2216.3,2214.9,13.74947696]
[1770013275454,0.947,2216.4,2214.9,13.74947696]
[1770013276429,0.1024,2216.6,2214.9,13.74947696]
[1770013277239,0.96535011,2216.5,2214.9,13.74947696]
[1770013277441,1.06775011,2216.4,2214.3,13.74947696]
[1770013277641,1.30740197,2216.2,2214.3,15.21912466]
[1770013277856,0.1024,2216.0,2214.3,15.21912466]
[1770013278055,0.96535011,2215.9,2214.3,15.21912466]
[1770013278256,0.1024,2215.7,2214.3,15.21912466]
[1770013278455,1.43227718,2216.3,2214.3,15.21912466]
[1770013278669,1.06829286,2216.2,2214.5,13.74947696]
[1770013278883,0.1024,2216.2,2214.5,14.69647696]
[1770013279654,0.1024,2216.0,2214.5,13.74947696]
[1770013280400,0.96671949,2215.9,2214.5,13.74947696]
[1770013280582,0.1024,2216.0,2214.5,13.74947696]
[1770013280884,0.1024,2216.0,2214.5,15.2766159]
[1770013281980,0.22727521,2216.3,2214.7,13.74947696]
[1770013281981,0.1024,2216.2,2214.7,13.74947696]
[1770013283363,1.20500197,2216.8,2214.7,13.74947696]
[1770013283559,0.1024,2216.7,2214.7,13.74947696]
[1770013283892,0.1024,2216.5,2214.7,13.74947696]
[1770013284089,1.20500197,2217.0,2215.1,13.74947696]
[1770013284282,0.96715245,2216.9,2215.3,13.74947696]
[1770013284481,0.1024,2216.7,2215.3,13.74947696]
[1770013284822,1.30740197,2216.2,2214.9,0.001]
[1770013285087,1.30740197,2215.8,2214.3,13.74947696]
[1770013285308,1.20500197,2215.7,2214.3,13.74947696]
[1770013285592,1.20500197,2215.7,2213.5,0.947]
[1770013285593,0.1024,2215.5,2214.6,0.001]
[1770013285762,2.27455442,2215.5,2214.6,0.001]
[1770013285954,1.06955245,2215.4,2214.6,0.001]
[1770013286182,0.1024,2215.4,2214.6,0.001]
[1770013286487,0.96818382,2215.3,2214.6,0.001]
[1770013286654,0.1024,2215.4,2214.6,0.001]
[1770013287495,0.96843755,2215.3,2214.6,0.001]
[1770013287662,0.1024,2215.2,2214.6,0.001]
[1770013288390,0.1024,2215.2,2213.5,13.74947696]
[1770013288565,0.1024,2214.7,2213.0,13.74947696]
[1770013288893,1.21053247,2214.8,2213.0,13.74947696]
[1770013288894,0.1024,2214.5,2213.0,13.74947696]
[1770013289274,1.21053247,2214.9,2213.0,13.74947696]
[1770013289475,0.1024,2215.1,2213.2,13.74947696]
[1770013289680,0.1024,2215.1,2213.4,13.74947696]
[1770013289882,0.1024,2215.1,2213.3,1.4696477]
[1770013289883,0.96805878,2215.0,2213.3,1.4696477]
[1770013290055,1.31293247,2214.8,2212.9,13.74947696]
[1770013290260,1.31293247,2214.6,2212.9,13.74947696]
[1770013290494,0.1024,2214.4,2212.9,13.74947696]
[1770013290785,0.1024,2214.2,2212.9,13.74947696]
[1770013290956,0.1024,2214.0,2212.9,13.74947696]
[1770013291159,0.1024,2214.0,2213.0,1.3749477]
[1770013291361,0.1024,2214.0,2213.0,15.12442466]
[1770013291797,0.1024,2214.0,2212.2,0.948]
[1770013291974,0.1024,2214.0,2212.3,13.74947696]
[1770013293365,0.948,2214.2,2212.3,13.74947696]
[1770013293696,1.21053247,2214.8,2212.3,13.74947696]
[1770013293862,1.91300437,2214.7,2212.3,13.74947696]
[1770013294205,0.1024,2214.6,2212.5,13.74947696]
[1770013294759,0.1024,2214.6,2212.7,13.74947696]
[1770013295062,0.1024,2215.0,2212.7,13.74947696]
[1770013295264,0.948,2215.1,2213.1,13.74947696]
[1770013295464,1.21053247,2216.1,2213.5,13.74947696]
[1770013295776,0.1024,2215.7,2213.7,13.74947696]
[1770013296497,0.948,2215.8,2213.7,13.74947696]
[1770013296708,15.09449527,2216.6,2213.6,1.39830473]
[1770013296709,1.44145964,2216.5,2213.9,13.74947696]
[1770013296863,0.1024,2216.3,2214.1,13.74947696]
[1770013297371,0.948,2216.4,2214.1,13.74947696]
[1770013297565,0.948,2216.4,2214.3,13.74947696]
[1770013297766,0.1024,2216.3,2214.3,13.74947696]
[1770013299304,1.21163247,2216.8,2214.6,12.90928753]
[1770013299305,0.0011,2216.8,2214.6,12.90928753]
[1770013299600,0.0011,2216.2,2214.8,12.90928753]
[1770013299903,0.0011,2216.8,2215.1,12.90928753]
[1770013300203,0.0011,2216.8,2214.9,1.38572875]
[1770013300204,0.0011,2216.8,2215.0,13.14285783]
[1770013300693,0.0011,2216.8,2215.0,12.90928753]
[1770013301107,0.0011,2216.8,2214.9,1.38572875]
[1770013301108,0.0011,2216.8,2215.2,12.90928753]
[1770013301292,0.0011,2216.8,2215.4,12.90928753]
[1770013301490,0.0011,2216.8,2215.6,12.90928753]
[1770013303490,0.0011,2216.8,2215.3,1.31428578]
[1770013304003,0.1024,2216.6,2215.1,12.90928753]
[1770013304504,0.96457492,2216.5,2214.9,1.38572875]
[1770013304706,2.15753247,2216.7,2214.6,12.90928753]
[1770013304910,0.1024,2216.4,2214.6,12.90928753]
[1770013305098,0.1024,2216.2,2214.6,12.90928753]
[1770013305441,9.64541481,2216.1,2214.5,0.001]
[1770013305707,9.64541481,2216.1,2213.4,0.001]
[1770013305708,0.1024,2215.5,2213.6,12.90928753]
[1770013305877,0.1024,2215.3,2213.7,1.29092875]
[1770013306082,0.1024,2215.1,2213.7,1.29092875]
[1770013306300,0.1024,2215.1,2213.7,14.20021628]
[1770013308011,0.1024,2215.3,2213.7,1.24092875]
[1770013308309,0.1024,2215.3,2212.6,13.26342574]
[1770013308310,0.1024,2214.6,2212.6,13.26342574]
[1770013308488,0.1024,2214.4,2212.6,13.26342574]
[1770013308693,13.18185456,2214.2,2212.2,0.001]
[1770013308997,0.1024,2213.9,2212.2,13.26442574]
[1770013309203,0.947,2214.1,2212.4,13.26342574]
[1770013310114,0.1024,2214.0,2212.4,13.26342574]
[1770013310982,0.947,2214.1,2212.4,13.26342574]
[1770013311179,1.21053247,2215.1,2212.4,13.26342574]
[1770013311405,2.01382071,2215.0,2212.5,0.2335703]
[1770013311607,0.947,2215.0,2212.6,13.26342574]
[1770013311814,0.1024,2214.9,2212.6,13.26342574]
[1770013312014,1.06684071,2214.9,2212.6,13.26342574]
[1770013312184,0.1024,2214.7,2212.6,13.26342574]
[1770013313212,0.1024,2214.5,2212.6,13.26342574]
[1770013313384,0.1024,2214.7,2212.8,13.26342574]
[1770013313580,0.1024,2214.5,2212.8,13.26342574]
[1770013314584,0.1024,2214.7,2212.8,13.26342574]
[1770013318132,20.44417405,2215.5,2212.8,13.26342574]
[1770013318302,0.1024,2214.9,2212.8,13.26342574]
[1770013318631,0.1024,2214.9,2213.0,13.26342574]
[1770013319243,0.948,2215.0,2213.2,13.26342574]
[1770013320524,0.948,2215.0,2213.4,13.26342574]
[1770013320734,13.46613957,2216.1,2213.1,0.948]
[1770013320735,0.0011,2216.2,2213.6,13.26342574]
[1770013321032,0.0011,2216.2,2213.7,14.9247207]
[1770013321216,0.0011,2216.2,2213.9,13.26342574]
[1770013321418,0.0011,2216.2,2214.1,13.26342574]
[1770013322020,0.0011,2216.2,2213.8,1.72604237]
[1770013322021,0.0011,2216.2,2214.5,13.26342574]
[1770013322349,0.0011,2216.2,2214.7,13.26342574]
[1770013322850,0.0011,2216.2,2214.1,13.26342574]
[1770013323002,0.0011,2216.2,2214.2,14.68456831]
[1770013323743,9.61088485,2216.0,2213.7,13.26342574]
[1770013323904,0.1024,2215.8,2213.7,13.26342574]
[1770013324233,0.1024,2215.6,2213.7,13.26342574]
[1770013325046,0.1035,2216.2,2213.7,13.26342574]
[1770013325337,1.41377675,2216.2,2213.9,13.26342574]
[1770013325710,1.06706585,2216.1,2213.9,13.26342574]
[1770013325914,0.1024,2216.1,2213.9,13.26342574]
[1770013326111,0.0011,2216.2,2214.1,13.26342574]
[1770013326412,0.0011,2216.4,2214.8,13.26342574]
[1770013326651,0.0011,2216.8,2215.3,13.26342574]
[1770013326811,0.0011,2216.8,2214.9,1.55991287]
[1770013326812,0.0011,2216.8,2215.5,13.26342574]
[1770013327551,0.0011,2215.7,2215.5,13.26342574]
[1770013327908,0.0011,2216.8,2215.6,13.02685454]
[1770013327909,0.0011,2215.9,2215.6,13.02685454]
[1770013328118,0.0011,2216.8,2215.6,13.02685454]
[1770013328320,0.0011,2216.8,2215.7,14.32953999]
[1770013329835,0.0011,2216.8,2215.2,13.97485454]
[1770013332888,3.91768292,2218.0,2215.2,13.97485454]
[1770013332889,2.31139036,2218.0,2215.7,13.02685454]
[1770013333032,2.31139036,2218.0,2215.6,0.2335703]
[1770013333033,9.25459549,2218.6,2215.9,13.02685454]
[1770013333229,0.1024,2218.4,2215.9,13.02685454]
[1770013333431,9.25459549,2218.6,2215.9,13.02685454]
[1770013333737,0.1024,2218.5,2215.9,13.02685454]
[1770013333939,9.25459549,2218.6,2215.9,13.02685454]
[1770013334162,0.92545955,2218.5,2216.1,13.02685454]
[1770013334459,8.41108449,2218.4,2216.1,13.02685454]
[1770013334843,0.1024,2218.2,2216.1,13.02685454]
[1770013336358,0.1024,2218.4,2216.1,13.02685454]
[1770013337050,8.41108449,2218.4,2216.1,15.33616367]
[1770013337263,8.41108449,2218.1,2216.1,15.33616367]
[1770013337436,8.41108449,2218.1,2216.1,2.30930913]
[1770013338136,0.9336544,2218.3,2216.1,15.33616367]
[1770013338372,0.947,2218.3,2216.1,15.33616367]
[1770013339139,0.1024,2218.2,2216.1,15.33616367]
[1770013340364,0.0011,2218.1,2216.1,15.33616367]
[1770013341240,8.41108449,2218.0,2216.1,15.33616367]
[1770013342548,0.0011,2218.1,2216.1,15.33616367]
[1770013342865,0.0011,2218.1,2216.3,13.02685454]
[1770013345468,0.0011,2218.1,2216.4,13.02685454]
[1770013345654,0.0011,2218.1,2216.6,13.02685454]
[1770013351581,0.0011,2218.1,2216.2,1.53361637]
[1770013351582,9.37658866,2218.0,2216.2,14.56047091]
[1770013351750,0.1024,2217.6,2216.1,2.30930913]
[1770013351946,0.1024,2217.4,2216.1,2.30930913]
[1770013352565,0.1024,2217.4,2216.1,15.33616367]
[1770013353680,0.1024,2217.4,2216.4,0.001]
[1770013354259,0.96832772,2217.3,2216.4,0.001]
[1770013354460,0.946,2217.5,2216.4,0.001]
[1770013354784,0.96824637,2217.4,2216.4,0.001]
[1770013354985,0.946,2217.5,2216.4,0.001]
[1770013354986,0.96824637,2217.3,2216.4,0.001]
[1770013355284,0.1024,2217.4,2216.4,0.001]
[1770013355464,0.96953164,2217.3,2216.4,0.001]
[1770013355667,0.96953164,2217.2,2216.4,0.001]
[1770013355864,1.30812753,2217.4,2216.1,2.30930913]
[1770013356077,0.1024,2217.2,2216.1,2.30930913]
[1770013356387,0.9695597,2217.1,2216.1,2.30930913]
[1770013356558,1.20572753,2216.9,2215.5,0.001]
[1770013356755,1.30812753,2216.4,2215.5,0.001]
[1770013356959,0.1024,2216.2,2214.9,1.32634257]
[1770013357268,0.9695597,2216.1,2214.9,1.32634257]
[1770013357463,2.76078521,2216.2,2214.9,1.32634257]
[1770013357786,0.9695597,2216.1,2214.9,15.07320418]
[1770013357990,0.9695597,2216.1,2212.8,6.85102735]
[1770013357991,1.30812753,2216.0,2213.4,13.74686161]
[1770013358156,1.30812753,2216.0,2212.9,5.72026374]
[1770013358157,1.20572753,2215.8,2213.6,13.74686161]
[1770013358490,1.20572753,2215.8,2213.8,13.74686161]
[1770013358491,0.1024,2215.7,2213.8,13.74686161]
[1770013358705,0.1024,2215.5,2213.8,13.74686161]
[1770013359001,1.9165597,2215.4,2213.9,16.57154777]
[1770013359156,0.947,2215.4,2213.9,16.57154777]
[1770013359780,0.1024,2215.3,2213.9,16.57154777]
[1770013360885,1.20572753,2216.1,2213.9,16.57154777]
[1770013361063,0.96585927,2216.0,2213.9,16.57154777]
[1770013361269,0.48309798,2216.2,2214.1,13.74686161]
[1770013361472,0.1024,2216.3,2214.1,13.74686161]
[1770013361660,0.1024,2216.1,2214.1,13.74686161]
[1770013362974,0.947,2216.4,2214.3,13.74686161]
[1770013363314,0.947,2216.4,2214.5,13.74686161]
[1770013363461,0.947,2216.4,2214.7,13.74686161]
[1770013363661,2.10386638,2216.7,2214.9,13.74686161]
[1770013363886,2.10386638,2216.7,2215.1,13.74686161]
[1770013364465,0.1024,2216.6,2215.1,13.74686161]
[1770013364872,0.1024,2216.6,2214.1,14.5]
[1770013365071,0.1024,2216.4,2214.2,14.69386161]
[1770013365390,2.10386638,2216.7,2214.4,13.74686161]
[1770013365561,2.10386638,2216.7,2214.3,2.91938616]
[1770013365562,2.10386638,2216.7,2214.6,13.74686161]
[1770013365758,2.10386638,2216.7,2214.7,14.5]
[1770013365964,2.10386638,2216.7,2214.8,14.69386161]